fUST/lending_fUST_20260123
["ID","MTS","AMOUNT","RATE_DAILY","PERIOD"]
[403114571,1769169726671,-413.619697,0.00028767,60]
[403114572,1769169726710,-711.43632,0.000288,120]
[403114573,1769169726749,-313.6681,0.000288,120]
[403114574,1769169726787,-200.0,0.00029,120]
[403114575,1769169726824,-481.67561,0.00029,120]
[403114576,1769169726860,-260.49471,0.00029,120]
[403114577,1769169727055,-2304.0,0.00029,120]
[403114578,1769169727104,-200.0,0.00029031,120]
[403114579,1769169727149,-5000.0,0.00029041,120]
[403114580,1769169727194,-5000.0,0.00029041,120]
[403114581,1769169727239,-516578.6316,0.0002922,30]
[403114582,1769169727284,-249.47305,0.000294,120]
[403114583,1769169727329,-754.0,0.000294,120]
[403114584,1769169727379,-200.0,0.0002945,120]
[403114585,1769169727429,-481.67561,0.000295,120]
[403114586,1769169727486,-870.32273417,0.000295,120]
[403114587,1769169727538,-5000.0,0.00029589,120]
[403114588,1769169727592,-5000.0,0.00029589,120]
[403114589,1769169727645,-200.0,0.000296,120]
[403114590,1769169727697,-200.0,0.000296,120]
[403114591,1769169727751,-200.0,0.000296,120]
[403114592,1769169727804,-711.43632,0.000297,120]
[403114593,1769169727858,-1000.0,0.0002972,30]
[403114594,1769169727911,-1000.0,0.0002972,30]
[403114595,1769169727965,-1000.0,0.0002972,30]
[403114596,1769169728017,-200.0,0.00029832,120]
[403114597,1769169728072,-200.0,0.00029844,120]
[403114598,1769169728126,-50864.64662376,0.000299,30]
[403114599,1769169728181,-214.7532158,0.000299,120]
[403114600,1769169728236,-230.6169718,0.000299,120]
[403114601,1769169728291,-475.0,0.00029938,120]
[403114602,1769169728346,-475.0,0.00029938,120]
[403114603,1769169728404,-475.0,0.00029938,120]
[403114604,1769169728467,-475.0,0.00029949,120]
[403114605,1769169728525,-241.026573,0.0002997,30]
[403114606,1769169728590,-800.0,0.0003,120]
[403114607,1769169728650,-3544.50527348,0.0003,30]
[403114608,1769169728713,-1000.0,0.0003,120]
[403114609,1769169728764,-1000.0,0.0003,120]
[403114610,1769169728823,-1000.0,0.0003,120]
[403114611,1769169728880,-1000.0,0.0003,120]
[403114612,1769169728932,-1000.0,0.0003,120]
[403114613,1769169728994,-1000.0,0.0003,120]
[403114614,1769169729057,-1000.0,0.0003,120]
[403114615,1769169729121,-1000.0,0.0003,120]
[403114616,1769169729184,-1000.0,0.0003,120]
[403114617,1769169729236,-1000.0,0.0003,120]
[403114618,1769169729299,-1000.0,0.0003,120]
[403114619,1769169729351,-122167.2715363,0.0003,30]
[403114620,1769169729407,-1909.0,0.0003,120]
[403114621,1769169729470,-1526.90976025,0.0003,120]
[403114622,1769169729527,-2109.49605693,0.0003,120]
[403114623,1769169729581,-690.0,0.0003,30]
[403114624,1769169729644,-481.67561,0.0003,120]
[403114625,1769169729698,-214.652843,0.0003,120]
[403114626,1769169729751,-1878.66168333,0.0003,120]
[403114627,1769169729803,-218.4178822,0.0003,120]
[403114628,1769169729863,-260.42752853,0.0003,30]
[403114629,1769169729926,-258489.62018855,0.0003,30]
[403114630,1769169729985,-1000.0,0.0003,60]
[403114631,1769169730037,-331.499998,0.0003,120]
[403114632,1769169730097,-1525162.20939249,0.0003,30]
[403114633,1769169730157,-480.54228873,0.0003,60]
[403114634,1769169730218,-461.38437415,0.0003,120]
[403114635,1769169730273,-1257.80356366,0.0003,120]
[403114636,1769169730333,-4459.415874,0.0003,90]
[403114637,1769169730386,-4779.27770677,0.0003,120]
[403114638,1769169730435,-887942.4503144,0.0003,30]
[403114639,1769169730491,-3824.0,0.0003,30]
[403114640,1769169730543,-266.50384091,0.0003,120]
[403114641,1769169730598,-843.07,0.0003,120]
[403114642,1769169730650,-200.0,0.0003,120]
[403114643,1769169730709,-652.24538683,0.0003,120]
[403114644,1769169730766,-1041.66666667,0.0003,30]
[403114645,1769169730824,-1108.67,0.0003,30]
[403114646,1769169730872,-293.46322517,0.0003,60]
[403114647,1769169730929,-200.0,0.00030028,120]
[403114648,1769169730981,-1108.67,0.0003006,30]
[403114649,1769169731042,-1108.67,0.0003012,30]
[403114650,1769169731100,-1408.66837922,0.0003013,120]
[403114651,1769169731154,-1000.0,0.00030136,120]
[403114652,1769169731208,-1000.0,0.00030136,120]
[403114653,1769169731261,-1000.0,0.00030136,120]
[403114654,1769169731313,-1084.31239189,0.00030136,120]
[403114655,1769169731373,-1681.52380817,0.00030136,120]
[403114656,1769169731427,-500.0,0.00030137,120]
[403114657,1769169731476,-710.8543007,0.00030137,120]
[403114658,1769169731536,-5000.0,0.00030137,120]
[403114659,1769169731589,-5000.0,0.00030137,120]
[403114660,1769169731642,-156.22622224,0.00030165,120]
[403114661,1769169731698,-1108.67,0.0003018,30]
[403114662,1769169731755,-249.47305,0.000302,120]
[403114663,1769169731802,-1108.67,0.0003024,30]
[403114664,1769169731857,-200.0,0.000303,120]
[403114665,1769169731914,-1108.67,0.000303,30]
[403114666,1769169731975,-200.0,0.00030306,120]
[403114667,1769169732030,-200.0,0.00030326,120]
[403114668,1769169732081,-1108.67,0.0003036,30]
[403114669,1769169732145,-36841.45279484,0.00030404,30]
[403114670,1769169735062,1162.1650855,0.00011483,2]
[403114671,1769169735084,851.4719307,0.00011483,2]
[403114672,1769169736555,500.0,0.00011483,2]
[403114673,1769169736588,582.0,0.00011482,2]
[403114674,1769169736615,500.0,0.00011483,2]
[403114675,1769169737290,300.7183929,0.00011466,2]
[403114676,1769169738177,300.0,0.00011453,2]
[403114681,1769170067931,170.7390773,0.00011495,2]
[403114754,1769170237993,-300.0,0.00012463,2]
[403114756,1769170238003,-300.0,0.00012463,2]
[403114758,1769170238012,-300.0,0.00012463,2]
[403114760,1769170238022,-223.91562484,0.00012463,2]
[403114764,1769170238045,-976.08437516,0.00012463,2]
[403114766,1769170238055,-161.39479508,0.00012464,2]
[403114768,1769170238064,-661.2054088,0.00012464,2]
[403114770,1769170238075,-51.14254365,0.00012464,2]
[403114924,1769170240098,-181.44428527,0.00012464,2]
[403114925,1769170240108,-504.83385188,0.00012464,2]
[403114926,1769170240118,-435.26772957,0.00012464,2]
[403114927,1769170240128,-10690.85391178,0.00012464,2]
[403114928,1769170240138,-229.11192422,0.00012464,2]
[403114929,1769170240148,-2107.05308959,0.00012466,19]
[403114930,1769170240157,-1590.90235517,0.00012497,2]
[403114931,1769170240166,-202.81618736,0.00012499,2]
[403114932,1769170240175,-2568.01274404,0.000125,2]
[403115052,1769170243216,-421.76952072,0.000125,2]
[403115053,1769170243247,-446.25085181,0.000125,2]
[403115063,1769170246034,-8230.60130559,0.000125,2]
[403115064,1769170246046,-36397.89870391,0.00012504,2]
[403115065,1769170264811,5000.0,0.00012354,2]
[403115066,1769170266639,1011.39,0.00012329,2]
[403115067,1769170276994,1085.96,0.00012329,2]
[403115068,1769170303809,904.97,0.00012329,2]
[403115069,1769170314410,754.14,0.00012329,2]
[403115070,1769170325027,628.45,0.00012329,2]
[403115071,1769170335585,444.3609227,0.00012329,2]
[403115072,1769170335607,79.3490773,0.00012329,2]
[403115073,1769170345999,436.43,0.00012329,2]
[403115074,1769170356394,363.69,0.00012329,2]
[403115075,1769170366789,303.07,0.00012329,2]
[403115076,1769170377404,252.56,0.00012329,2]
[403115077,1769170379533,204.9205364,0.00011606,2]
[403115078,1769170387834,210.47,0.00012329,2]
[403115079,1769170398214,175.39,0.00012329,2]
[403115080,1769170398528,247.00823268,0.00011672,2]
[403115081,1769170400234,444.61481882,0.00012124,2]
[403115084,1769170408617,876.97,0.00012329,2]
[403115085,1769170487534,399.18099019,0.000123,2]
[403115089,1769170566258,371.28035864,0.00012113,2]
[403115105,1769170688556,-300.0,0.00012712,21]
[403115106,1769170690159,-300.0,0.00012712,21]
[403115144,1769170879675,150.0,0.0001233,2]
[403115150,1769170945610,150.0,7.727e-05,2]
[403115151,1769170945936,150.0,8.43e-05,2]
[403115152,1769170946372,211.09,9.132e-05,2]
[403115153,1769170947319,281.45,9.835e-05,2]
[403115154,1769170947783,351.81,0.00010537,2]
[403115155,1769170948200,422.17,0.00011239,2]
[403115156,1769170948598,492.54,0.00011942,2]
[403115158,1769170958495,150.0,0.0001233,2]
[403115159,1769170958528,150.0,0.0001233,2]
[403115160,1769170959209,150.0,0.0001233,2]
[403115161,1769171003147,790.42634457,0.00012201,2]
[403115164,1769171017350,150.0,7.723e-05,2]
[403115165,1769171017744,150.0,8.425e-05,2]
[403115166,1769171018217,172.56,9.127e-05,2]
[403115167,1769171018616,230.08,9.829e-05,2]
[403115168,1769171019032,287.6,0.00010531,2]
[403115169,1769171019485,345.12,0.00011233,2]
[403115170,1769171019884,402.64,0.00011935,2]
[403115178,1769171082514,447.5896414,0.00011517,2]
[403115179,1769171082537,1510.0049694,0.00011517,2]
[403115181,1769171172292,424.32040987,0.0001219,2]
[403115183,1769171237648,150.0,0.0001233,2]
[403115184,1769171271461,3684.24381102,0.00012,5]
[403115185,1769171288421,150.0,7.717e-05,2]
[403115186,1769171288819,150.0,8.419e-05,2]
[403115187,1769171289221,150.0,9.12e-05,2]
[403115188,1769171289619,150.0,9.822e-05,2]
[403115189,1769171290020,185.27,0.00010523,2]
[403115190,1769171290427,222.33,0.00011225,2]
[403115191,1769171290846,259.38,0.00011926,2]
[403115192,1769171305214,2964.46080971,5e-06,2]
[403115193,1769171305237,7058.33656525,5e-06,2]
[403115194,1769171320604,150.92576983,0.00011,2]
[403115195,1769171360622,150.0,7.737e-05,2]
[403115196,1769171361025,150.0,8.44e-05,2]
[403115197,1769171361428,150.0,9.143e-05,2]
[403115198,1769171361859,150.0,9.846e-05,2]
[403115199,1769171362267,150.0,0.0001055,2]
[403115200,1769171362690,150.0,0.00011253,2]
[403115201,1769171363083,150.0,0.00011956,2]
[403115212,1769171392062,1740.74766492,0.00012299,2]
[403115213,1769171392086,10000.01,0.00012299,2]
[403115214,1769171392112,10000.01,0.00012299,2]
[403115215,1769171392136,10000.01,0.00012299,2]
[403115216,1769171392163,10000.01,0.00012299,2]
[403115217,1769171392188,10000.01,0.00012299,2]
[403115218,1769171392212,10000.01,0.00012299,2]
[403115219,1769171392236,10000.01,0.00012299,2]
[403115220,1769171392260,10000.01,0.00012299,2]
[403115221,1769171392284,10000.01,0.00012299,2]
[403115222,1769171428571,-300.0,0.00012298,2]
[403115223,1769171428598,-300.0,0.00012298,2]
[403115224,1769171428629,-300.0,0.00012298,2]
[403115225,1769171428655,-300.0,0.00012298,2]
[403115226,1769171428683,-1200.0,0.00012298,2]
[403115227,1769171428710,-594.0,0.00012298,2]
[403115228,1769171429204,4012.01,0.00012175,2]
[403115229,1769171429262,-987.99,0.00012175,2]
[403115429,1769171436632,-9854.02710172,0.00012299,2]
[403115430,1769171436643,-110863.07691985,0.00012299,2]
[403115431,1769171436653,-1211.42354415,0.00012299,2]
[403115432,1769171436664,-717.47312488,0.00012299,2]
[403115433,1769171436675,-1123.02642622,0.00012299,2]
[403115434,1769171436686,-990.95598131,0.00012299,2]
[403115442,1769171438190,-16711.22796161,0.00012299,2]
[403115443,1769171438204,-4934.43754675,0.00012299,2]
[403115444,1769171438215,-3823.19028699,0.00012299,2]
[403115445,1769171438245,-311.65185859,0.00012299,2]
[403115446,1769171438302,-5381.05219743,0.00012299,2]
[403115448,1769171440630,-980.35134053,0.00012299,2]
[403115454,1769171444878,-915.53682693,0.00012299,2]
[403115456,1769171444889,-2086.3943386,0.00012299,2]
[403115494,1769171446279,-1466.7893271,0.00012299,2]
[403115495,1769171446290,-1002.17453697,0.00012299,2]
[403115496,1769171451530,5000.0,0.00012299,2]
[403115497,1769171462775,300.0,0.00012298,2]
[403115499,1769171474297,2724.03,0.00012299,2]
[403115500,1769171474321,2275.97,0.00012299,2]
[403115501,1769171496486,5000.0,0.00012299,2]
[403115502,1769171531525,-5000.0,0.00012176,2]
[403115503,1769171542206,0.01,0.00012176,2]
[403115504,1769171542229,4999.99,0.00012176,2]
[403115515,1769171548657,-300.0,0.00012298,2]
[403115516,1769171548773,500.0,0.000104,2]
[403115517,1769171549262,500.0,0.000104,2]
[403115518,1769171552355,500.0,0.000104,2]
[403115519,1769171552856,1000.0,0.000104,2]
[403115520,1769171564942,5000.0,0.00012298,2]
[403115522,1769171596994,-300.0,0.00012298,2]
[403115523,1769171597026,-300.0,0.00012298,2]
[403115524,1769171612634,166.19143941,0.00012297,2]
[403115525,1769171614364,635.95029581,0.00011983,2]
[403115526,1769171630833,-200.0,0.00012186,2]
[403115538,1769171647758,-300.0,0.00012297,2]
[403115539,1769171652809,150.0,0.00012182,2]
[403115540,1769171653386,500.0,0.00012182,2]
[403115541,1769171653501,152.15271456,0.00012182,2]
[403115542,1769171653607,151.0647238,0.00012182,2]
[403115543,1769171653941,150.0,0.00012182,2]
[403115544,1769171663687,-581.78122877,0.00012298,2]
[403115545,1769171663717,-500.0,0.00012298,2]
[403115546,1769171663746,-500.0,0.00012298,2]
[403115547,1769171663776,-500.0,0.00012298,2]
[403115548,1769171663806,-500.0,0.00012298,2]
[403115549,1769171663836,-500.0,0.00012298,2]
[403115550,1769171663865,-500.0,0.00012298,2]
[403115551,1769171663893,-500.0,0.00012298,2]
[403115552,1769171663922,-500.0,0.00012298,2]
[403115553,1769171663952,-336.44754246,0.00012298,2]
[403115554,1769171664083,-163.55245754,0.00012298,2]
[403115555,1769171664113,-500.0,0.00012298,2]
[403115556,1769171664142,-500.0,0.00012298,2]
[403115557,1769171664170,-500.0,0.00012298,2]
[403115558,1769171664202,-500.0,0.00012298,2]
[403115559,1769171664233,-500.0,0.00012298,2]
[403115560,1769171664263,-500.0,0.00012298,2]
[403115561,1769171664293,-500.0,0.00012298,2]
[403115562,1769171664322,-500.0,0.00012298,2]
[403115563,1769171664350,-500.0,0.00012298,2]
[403115564,1769171664378,-172.90508492,0.00012298,2]
[403115565,1769171664496,-327.09491508,0.00012298,2]
[403115566,1769171664523,-500.0,0.00012298,2]
[403115567,1769171664552,-500.0,0.00012298,2]
[403115568,1769171664580,-500.0,0.00012298,2]
[403115569,1769171664608,-500.0,0.00012298,2]
[403115570,1769171664638,-500.0,0.00012298,2]
[403115571,1769171664667,-500.0,0.00012298,2]
[403115572,1769171664695,-192.82755945,0.00012298,2]
[403115573,1769171664722,-500.0,0.00012298,2]
[403115574,1769171664750,-344.43418391,0.00012298,2]
[403115575,1769171664778,-500.0,0.00012298,2]
[403115576,1769171664980,-500.0,0.00012298,2]
[403115577,1769171665009,-500.0,0.00012298,2]
[403115578,1769171665037,-500.0,0.00012298,2]
[403115579,1769171665066,-500.0,0.00012298,2]
[403115580,1769171665094,-500.0,0.00012298,2]
[403115581,1769171665123,-500.0,0.00012298,2]
[403115582,1769171665151,-500.0,0.00012298,2]
[403115583,1769171665184,-500.0,0.00012298,2]
[403115584,1769171665214,-500.0,0.00012298,2]
[403115585,1769171665386,-500.0,0.00012298,2]
[403115586,1769171665595,-500.0,0.00012298,2]
[403115587,1769171665625,-500.0,0.00012298,2]
[403115588,1769171665654,-500.0,0.00012298,2]
[403115589,1769171665682,-500.0,0.00012298,2]
[403115590,1769171665710,-500.0,0.00012298,2]
[403115591,1769171665739,-500.0,0.00012298,2]
[403115592,1769171665767,-500.0,0.00012298,2]
[403115593,1769171665794,-500.0,0.00012298,2]
[403115594,1769171665821,-500.0,0.00012298,2]
[403115595,1769171665849,-500.0,0.00012298,2]
[403115596,1769171665960,-500.0,0.00012298,2]
[403115597,1769171665988,-500.0,0.00012298,2]
[403115598,1769171666018,-500.0,0.00012298,2]
[403115599,1769171666047,-500.0,0.00012298,2]
[403115600,1769171666077,-500.0,0.00012298,2]
[403115601,1769171666105,-500.0,0.00012298,2]
[403115602,1769171666132,-500.0,0.00012298,2]
[403115603,1769171666161,-500.0,0.00012298,2]
[403115604,1769171666193,-500.0,0.00012298,2]
[403115605,1769171666224,-500.0,0.00012298,2]
[403115606,1769171670132,-500.0,0.00012298,2]
[403115607,1769171670163,-500.0,0.00012298,2]
[403115608,1769171670196,-500.0,0.00012298,2]
[403115609,1769171670227,-500.0,0.00012298,2]
[403115610,1769171670255,-500.0,0.00012298,2]
[403115611,1769171670287,-500.0,0.00012298,2]
[403115612,1769171670317,-500.0,0.00012298,2]
[403115613,1769171670348,-500.0,0.00012298,2]
[403115614,1769171670378,-500.0,0.00012298,2]
[403115615,1769171670406,-500.0,0.00012298,2]
[403115616,1769171670521,-500.0,0.00012298,2]
[403115617,1769171670551,-500.0,0.00012298,2]
[403115618,1769171670581,-500.0,0.00012298,2]
[403115619,1769171670610,-500.0,0.00012298,2]
[403115620,1769171670640,-500.0,0.00012298,2]
[403115621,1769171670670,-500.0,0.00012298,2]
[403115622,1769171670698,-500.0,0.00012298,2]
[403115623,1769171670727,-500.0,0.00012298,2]
[403115624,1769171670757,-500.0,0.00012298,2]
[403115625,1769171670786,-500.0,0.00012298,2]
[403115626,1769171670889,-500.0,0.00012298,2]
[403115627,1769171670917,-500.0,0.00012298,2]
[403115628,1769171670948,-500.0,0.00012298,2]
[403115629,1769171670979,-500.0,0.00012298,2]
[403115630,1769171671007,-500.0,0.00012298,2]
[403115631,1769171671035,-485.41184356,0.00012298,2]
[403115632,1769171671065,-500.0,0.00012298,2]
[403115633,1769171671094,-500.0,0.00012298,2]
[403115634,1769171671124,-500.0,0.00012298,2]
[403115635,1769171671153,-500.0,0.00012298,2]
[403115636,1769171673816,-500.0,0.00012298,2]
[403115637,1769171673847,-500.0,0.00012298,2]
[403115638,1769171673875,-500.0,0.00012298,2]
[403115639,1769171673907,-500.0,0.00012298,2]
[403115640,1769171673939,-500.0,0.00012298,2]
[403115641,1769171673970,-500.0,0.00012298,2]
[403115642,1769171673999,-500.0,0.00012298,2]
[403115643,1769171674027,-500.0,0.00012298,2]
[403115644,1769171674056,-500.0,0.00012298,2]
[403115645,1769171674085,-500.0,0.00012298,2]
[403115646,1769171674223,-500.0,0.00012298,2]
[403115647,1769171674252,-500.0,0.00012298,2]
[403115648,1769171674281,-500.0,0.00012298,2]
[403115649,1769171674310,-500.0,0.00012298,2]
[403115650,1769171674339,-500.0,0.00012298,2]
[403115651,1769171674370,-500.0,0.00012298,2]
[403115652,1769171674399,-500.0,0.00012298,2]
[403115653,1769171674429,-500.0,0.00012298,2]
[403115654,1769171674458,-500.0,0.00012298,2]
[403115655,1769171674490,-500.0,0.00012298,2]
[403115656,1769171674595,-500.0,0.00012298,2]
[403115657,1769171674626,-500.0,0.00012298,2]
[403115658,1769171674655,-500.0,0.00012298,2]
[403115659,1769171674684,-500.0,0.00012298,2]
[403115660,1769171674714,-500.0,0.00012298,2]
[403115661,1769171674743,-500.0,0.00012298,2]
[403115662,1769171674774,-199.89023771,0.00012298,2]
[403115663,1769171674805,-500.0,0.00012298,2]
[403115664,1769171674835,-500.0,0.00012298,2]
[403115665,1769171674865,-500.0,0.00012298,2]
[403115666,1769171674895,-100.22952458,0.00012298,2]
[403115667,1769171674967,-399.77047542,0.00012298,2]
[403115668,1769171674999,-500.0,0.00012298,2]
[403115669,1769171675029,-500.0,0.00012298,2]
[403115670,1769171675060,-500.0,0.00012298,2]
[403115671,1769171675089,-500.0,0.00012298,2]
[403115672,1769171675121,-500.0,0.00012298,2]
[403115673,1769171675152,-500.0,0.00012298,2]
[403115674,1769171675182,-500.0,0.00012298,2]
[403115675,1769171675216,-500.0,0.00012298,2]
[403115676,1769171675247,-500.0,0.00012298,2]
[403115677,1769171696294,150.0,7.727e-05,2]
[403115678,1769171696782,150.0,8.43e-05,2]
[403115679,1769171697086,150.0,9.132e-05,2]
[403115680,1769171697505,150.0,9.835e-05,2]
[403115681,1769171697908,150.0,0.00010537,2]
[403115682,1769171698302,150.0,0.0001124,2]
[403115683,1769171698705,166.81,0.00011942,2]
[403115688,1769171747332,-300.0,0.00012297,2]
[403115689,1769171747360,-300.0,0.00012297,2]
[403115690,1769171747388,-1200.0,0.00012297,2]
[403115691,1769171747415,-300.0,0.00012297,2]
[403115692,1769171765999,150.0,7.785e-05,2]
[403115693,1769171766416,150.0,8.493e-05,2]
[403115694,1769171766850,150.0,9.201e-05,2]
[403115695,1769171767254,150.0,9.909e-05,2]
[403115696,1769171767656,150.0,0.00010616,2]
[403115697,1769171767980,300.0,0.00012297,2]
[403115698,1769171783798,4538.33424359,0.00012298,2]
[403115699,1769171791583,3496.75952902,0.00012298,2]
[403115700,1769171820042,4254.5054883,0.00011325,2]
[403115706,1769171916008,3473.4659474,0.00011304,2]
[403115708,1769171959012,150.0,7.711e-05,2]
[403115709,1769171959410,150.0,8.412e-05,2]
[403115710,1769171959825,150.0,9.113e-05,2]
[403115711,1769171960237,150.0,9.814e-05,2]
[403115719,1769172115817,1910.19650107,0.00011994,2]
[403115722,1769172216861,-127.29,0.0001208,2]
[403115726,1769172279875,150.0,7.674e-05,2]
[403115727,1769172280294,150.0,8.371e-05,2]
[403115728,1769172417164,-22.71,0.0001208,2]
[403115729,1769172417194,-592.0,0.00012174,2]
[403115730,1769172422691,300.0,0.00012195,2]
[403115732,1769172482478,300.0,0.00012195,2]
[403115733,1769172491388,4353.17,0.00012196,2]
[403115734,1769172514362,646.83,0.00011986,2]
[403115735,1769172536330,150.0,7.669e-05,2]
[403115736,1769172536738,150.0,8.366e-05,2]
[403115748,1769172562750,-300.0,0.00012712,21]
[403115749,1769172564192,-300.0,0.00012712,21]
[403115750,1769172564902,-300.0,0.00012712,21]
[403115751,1769172565644,-300.0,0.00012712,21]
[403115752,1769172566460,-300.0,0.00012712,21]
[403115753,1769172567627,-7.05308959,0.00012712,21]
[403115755,1769172607853,-150.0,0.0001208,2]
[403115756,1769172607881,-150.0,0.0001208,2]
[403115794,1769172632266,-150.0,0.0001208,2]
[403115796,1769172632276,-590.0,0.0001208,2]
[403115798,1769172632285,-164.48319246,0.000121,3]
[403115800,1769172632294,-407.24686014,0.00012194,2]
[403115802,1769172632305,-300.0,0.00012194,2]
[403115804,1769172632314,-300.0,0.00012194,2]
[403115806,1769172632322,-300.0,0.00012194,2]
[403115808,1769172632331,-1200.0,0.00012194,2]
[403115810,1769172632340,-300.0,0.00012194,2]
[403115812,1769172632349,-32584.58130912,0.00012195,2]
[403115814,1769172632358,-3089.80349893,0.00012196,2]
[403115816,1769172632367,-110669.16704004,0.00012196,2]
[403115818,1769172632376,-251.37031836,0.00012197,2]
[403115820,1769172632385,-150.0,0.00012217,2]
[403115822,1769172632396,-150.0,0.00012217,2]
[403115824,1769172632405,-184.94860392,0.00012292,2]
[403115827,1769172632424,-496.47127164,0.00012292,2]
[403115829,1769172632435,-181.08010149,0.00012292,2]
[403115831,1769172632444,-187.78006525,0.00012292,2]
[403115833,1769172632453,-194.72792766,0.00012292,2]
[403115835,1769172632463,-2398.4119403,0.00012292,2]
[403115837,1769172632472,-201.93286099,0.00012292,2]
[403115839,1769172632484,-209.40437684,0.00012292,2]
[403115841,1769172632503,-217.15233878,0.00012292,2]
[403115843,1769172632513,-225.18697532,0.00012292,2]
[403115845,1769172632523,-233.51889341,0.00012292,2]
[403115847,1769172632532,-242.15909246,0.00012292,2]
[403115849,1769172632542,-251.11897888,0.00012292,2]
[403115851,1769172632551,-260.4103811,0.00012292,2]
[403115853,1769172632560,-270.0455652,0.00012292,2]
[403115855,1769172632570,-280.03725112,0.00012292,2]
[403115857,1769172632579,-290.39862941,0.00012292,2]
[403115859,1769172632588,-301.1433787,0.00012292,2]
[403115862,1769172632599,-1144.71053245,0.00012299,2]
[403115864,1769172632609,-150.0,0.0001233,2]
[403115866,1769172632618,-150.16342399,0.0001233,2]
[403115867,1769172632628,-150.45045336,0.0001233,2]
[403115869,1769172632638,-3738.0169881,0.00012351,2]
[403115872,1769172632648,-165.38998936,0.00012354,2]
[403115874,1769172632660,-84.61001064,0.00012354,2]
[403115876,1769172632670,-200.79251461,0.00012354,2]
[403115878,1769172632679,-335.98887647,0.00012394,2]
[403115880,1769172632690,-1699.05207011,0.00012394,2]
[403115882,1769172632700,-832.04436636,0.000124,2]
[403115884,1769172632709,-404.35825631,0.00012464,2]
[403115886,1769172632719,-300.0,0.00012604,2]
[403115888,1769172632728,-300.0,0.00012604,2]
[403115890,1769172632738,-300.0,0.00012604,2]
[403115892,1769172632747,-300.0,0.00012604,2]
[403115894,1769172632757,-300.0,0.00012604,2]
[403115896,1769172632767,-300.0,0.00012604,2]
[403115899,1769172632777,-300.0,0.00012604,2]
[403115900,1769172632786,-300.0,0.00012604,2]
[403115901,1769172632796,-300.0,0.00012604,2]
[403115903,1769172632806,-300.0,0.00012604,2]
[403115905,1769172632815,-300.0,0.00012604,2]
[403115906,1769172632824,-300.0,0.00012604,2]
[403115907,1769172632833,-300.0,0.00012604,2]
[403115908,1769172632843,-300.0,0.00012604,2]
[403115909,1769172632855,-300.0,0.00012604,2]
[403115910,1769172632864,-600.0,0.00012604,2]
[403115911,1769172632873,-196.4238846,0.000127,2]
[403115912,1769172632882,-514.84070869,0.0001284,2]
[403115913,1769172632899,-2487.15318209,0.0001284,2]
[403115914,1769172632908,-5094.1861945,0.00012878,2]
[403115915,1769172632918,-4080.30531087,0.00012878,2]
[403115916,1769172632928,-4417.5745557,0.000129,2]
[403115917,1769172632937,-2107.05308959,0.00012957,24]
[403115918,1769172632947,-151.0,0.00013,2]
[403115919,1769172632956,-354.58,0.00013174,2]
[403115920,1769172632966,-2107.05308959,0.00013203,26]
[403115921,1769172632975,-250.0,0.00013265,2]